[Event "Gibraltar Challengers B 2020"]
[Site "Caleta"]
[Date "2020.01.27"]
[Round "3.39"]
[White "Fischer, Robert"]
[Black "Garcia-Blazquez Perez, Manuel"]
[Result "1-0"]
[ECO "B23"]
[WhiteElo "1923"]
[BlackElo "1825"]
[Annotator "NA"]
[PlyCount "63"]
[EventDate "2020.01.20"]
[EventType "swiss"]
[EventCountry "GGB"]
[SourceTitle "playchess.com"]
[Source "ChessBase"]
[SourceQuality "1"]
[TimeControl "6600+10"]

1. e4 {[%emt 0:00:00]} c5 {[%emt 0:00:00]} 2. Nc3 {[%emt 0:00:03]} g6 {[%emt 0:00:11]} 3. d4 {[%emt 0:01:36]} cxd4 {[%emt 0:00:06]} 4. Qxd4 {[%emt 0:00:08]} Nf6 {[%emt 0:00:04]} 5. e5 {[%emt 0:00:45]} Nc6 {[%emt 0:00:03]} 6. Qf4 {[%emt 0:01:17] B23: Closed Sicilian: Lines without g3} Nh5 {[%emt 0:00:06]} 7. Qe4 {[%emt 0:01:22]} Bg7 $146 {[%emt 0:09:18]} ({Predecessor:} 7... d6 8. Bb5 dxe5 9. Nf3 Bd7 10. Bg5 h6 11. Bh4 Nf6 12. Bxf6 exf6 {0-1 (46) Caruana,F (2802)-Hou,Y (2652) chess.com INT 2017}) 8. g4 {[%emt 0:05:53]} d5 {[%emt 0:00:03]} 9. Nxd5 {[%emt 0:05:04]} Bxg4 {[%emt 0:00:18]} 10. Ne3 {[%emt 0:05:24]} Qa5+ {[%emt 0:05:54]} 11. Bd2 {[%emt 0:02:25]} Qxe5 {[%emt 0:00:06]} 12. Qxg4 {[%emt 0:02:11]} f5 {[%emt 0:01:50]} 13. Qa4 {[%emt 0:08:06]} f4 {[%emt 0:11:24]} 14. Bc3 {[%emt 0:06:28]} Qc5 {[%emt 0:04:31]} 15. Qc4 {[%emt 0:05:04]} Bxc3+ {[%emt 0:07:39]} 16. bxc3 {[%emt 0:00:14]} Qa3 {[%emt 0:00:18]} 17. Nd5 {[%emt 0:04:06]} O-O-O {[%emt 0:00:34]} 18. Rb1 {[%emt 0:09:42]} Rxd5 {[%emt 0:03:13]} 19. Qxd5 {[%emt 0:00:54]} Qxc3+ {[%emt 0:00:05]} 20. Qd2 {[%emt 0:00:50]} Qe5+ {[%emt 0:00:07]} 21. Be2 {[%emt 0:05:27]} Rd8 {[%emt 0:02:35]} 22. Nf3 {[%emt 0:04:03]} Qe4 {[%emt 0:12:49]} 23. Qc3 {[%emt 0:02:16]} e5 {[%emt 0:08:56]} 24. Qc4 {[%emt 0:03:16]} Qf5 {[%emt 0:04:42]} 25. Bd3 {[%emt 0:03:22]} e4 {[%emt 0:04:09]} 26. Qxe4 {[%emt 0:01:07]} Qa5+ {[%emt 0:00:29]} 27. Kf1 {[%emt 0:01:35]} Qxa2 {[%emt 0:04:07]} 28. Kg2 {[%emt 0:00:56]} g5 {[%emt 0:01:21]} 29. Bc4 {[%emt 0:01:28]} Qa5 {[%emt 0:02:52]} 30. Qe6+ {[%emt 0:01:04]} Kc7 {[%emt 0:00:45] [#]} 31. Qf7+ $1 {[%emt 0:01:24] Double Attack} Rd7 {[%emt 0:00:05] [#]} 32. Rxb7+ {[%emt 0:02:00]} 1-0

[Event "Gibraltar Challengers B 2020"]
[Site "Caleta"]
[Date "2020.01.27"]
[Round "3.40"]
[White "Gonzalvez Tamarit, Ivan"]
[Black "Olufemi, George"]
[Result "1-0"]
[ECO "B70"]
[WhiteElo "1918"]
[BlackElo "1803"]
[Annotator "NA"]
[PlyCount "51"]
[EventDate "2020.01.20"]
[EventType "swiss"]
[EventCountry "GGB"]
[SourceTitle "playchess.com"]
[Source "ChessBase"]
[SourceQuality "1"]
[TimeControl "6600+10"]

1. d4 {[%emt 0:00:00]} g6 {[%emt 0:00:00]} 2. Nf3 {[%emt 0:00:17]} Bg7 {[%emt 0:00:03]} 3. g3 {[%emt 0:00:30]} c5 {[%emt 0:01:27]} 4. Bg2 {[%emt 0:04:44]} cxd4 {[%emt 0:01:25]} 5. Nxd4 {[%emt 0:00:30]} Nc6 {[%emt 0:00:10]} 6. Nb3 {[%emt 0:02:20]} Nf6 {[%emt 0:00:54]} 7. O-O {[%emt 0:00:40]} O-O {[%emt 0:00:30]} 8. e4 {[%emt 0:01:17]} d6 {[%emt 0:00:58]} 9. Nc3 {[%emt 0:02:06]} a5 {[%emt 0:04:13] B70: Sicilian Dragon: 6 g3 and 6 Be2 (without a later Be3)} (9... Bg4 10. f3 Be6 11. f4 a5 12. a4 Nb4 13. Kh1 Qb6 14. Ra3 Rac8 15. h3 d5 16. f5 Bd7 17. fxg6 fxg6 {½-½ (43) Korobov,A (2652)-Safarli,E (2639) Riadh 2017}) 10. a4 {[%emt 0:01:46]} Bg4 {[%emt 0:02:17]} 11. f3 {[%emt 0:09:58]} Be6 {[%emt 0:02:41]} 12. Be3 {[%emt 0:05:48]} Ne5 $146 {[%emt 0:08:35]} ({Black should play} 12... d5 $11) ({Predecessor:} 12... Qd7 13. Nd4 Bh3 14. Nd5 Nxd5 15. exd5 Ne5 16. b3 Bxg2 17. Kxg2 {1-0 (62) Korpa,B (2461)-Kaczmarek,A (2325) Katowice 2016}) 13. Nd4 {[%emt 0:14:22]} Bc4 {[%emt 0:01:27]} 14. Re1 {[%emt 0:01:06]} Rc8 {[%emt 0:00:48]} 15. Kh1 {[%emt 0:03:28]} Be6 {[%emt 0:12:45]} 16. Nxe6 {[%emt 0:05:29]} fxe6 {[%emt 0:00:05] [#]} 17. Bh3 $1 {[%emt 0:01:57]} Kf7 {[%emt 0:00:50]} 18. Bd4 {[%emt 0:14:29]} Rc4 {[%emt 0:20:11]} 19. f4 {[%emt 0:11:12]} Nc6 {[%emt 0:08:10]} (19... Neg4 $16) 20. Bxf6 {[%emt 0:03:08]} Bxf6 {[%emt 0:02:28] [#]} 21. Bxe6+ $1 {[%emt 0:00:46] Remove Defender, Decoy} Kxe6 {[%emt 0:02:13]} 22. Qd5+ {[%emt 0:00:20]} Kd7 {[%emt 0:00:37]} 23. Qxc4 {[%emt 0:00:18]} Qb6 $2 {[%emt 0:03:43]} (23... Bxc3 24. Qxc3 e5) 24. e5 {[%emt 0:04:57]} Bxe5 {[%emt 0:06:23]} 25. fxe5 {[%emt 0:01:55]} Rf2 $18 {[%emt 0:00:56]} 26. exd6 {[%emt 0:03:28]} 1-0

[Event "Gibraltar Challengers B 2020"]
[Site "Caleta"]
[Date "2020.01.27"]
[Round "3.41"]
[White "Johnsen, Sylvia"]
[Black "Kunnavakkam, Sudarshanagopal Vin"]
[Result "0-1"]
[ECO "B25"]
[WhiteElo "1902"]
[BlackElo "1786"]
[Annotator "NA"]
[PlyCount "104"]
[EventDate "2020.01.20"]
[EventType "swiss"]
[EventCountry "GGB"]
[SourceTitle "playchess.com"]
[Source "ChessBase"]
[SourceQuality "1"]
[TimeControl "6600+10"]

1. e4 {[%emt 0:00:00]} c5 {[%emt 0:00:48]} 2. Nc3 {[%emt 0:00:03]} Nc6 {[%emt 0:00:06]} 3. g3 {[%emt 0:00:07]} g6 {[%emt 0:00:52]} 4. Bg2 {[%emt 0:00:18]} Bg7 {[%emt 0:00:42]} 5. d3 {[%emt 0:00:24]} d6 {[%emt 0:02:38]} 6. Nge2 {[%emt 0:00:32]} e6 {[%emt 0:02:13]} 7. O-O {[%emt 0:03:32]} Nge7 {[%emt 0:00:33]} 8. Bg5 {[%emt 0:01:44]} Qd7 {[%emt 0:03:22]} 9. f4 {[%emt 0:17:22]} Rb8 {[%emt 0:08:14]} 10. g4 {[%emt 0:06:40]} f5 {[%emt 0:07:26]} 11. h3 {[%emt 0:10:49]} O-O {[%emt 0:13:30]} 12. Qd2 {[%emt 0:10:49]} b5 {[%emt 0:05:22]} 13. a3 {[%emt 0:03:07]} a6 {[%emt 0:08:26]} 14. Rae1 {[%emt 0:00:36]} Bb7 {[%emt 0:01:27]} 15. Nd1 {[%emt 0:05:58]} Rbe8 {[%emt 0:08:31]} 16. b4 {[%emt 0:06:31]} cxb4 {[%emt 0:04:42]} 17. axb4 {[%emt 0:00:10]} e5 {[%emt 0:03:31]} 18. Nf2 {[%emt 0:04:29]} d5 {[%emt 0:03:01]} 19. exf5 {[%emt 0:10:24]} gxf5 {[%emt 0:01:29]} 20. fxe5 {[%emt 0:13:26]} Nxe5 {[%emt 0:00:07]} 21. d4 {[%emt 0:00:33]} Nc4 {[%emt 0:03:19]} 22. Qf4 {[%emt 0:05:38]} Nc6 {[%emt 0:05:47]} ({Better is} 22... Ng6 $11 23. Qg3 {[#]} f4 $1 {[%mdl 512]} 24. Nxf4 Bxd4 25. Rxe8 Qxe8) 23. Nd3 {[%emt 0:03:36]} (23. gxf5 $1 $14 Nxb4 24. f6 Nxc2 25. Qh4) 23... fxg4 {[%emt 0:06:26]} 24. Qxg4 {[%emt 0:00:08]} Qxg4 {[%emt 0:03:04]} 25. hxg4 {[%emt 0:00:06]} Nxd4 {[%emt 0:00:28]} 26. Rxf8+ {[%emt 0:01:50]} Kxf8 {[%emt 0:01:45]} 27. Rf1+ {[%emt 0:00:43]} Kg8 {[%emt 0:00:09]} 28. Nef4 $2 {[%emt 0:01:57]} (28. Nxd4 $17 {was called for.} Bxd4+ 29. Kh2) 28... h6 {[%emt 0:03:49]} ({Not} 28... Nxc2 29. Nxd5 Kh8 30. Nc7 $17) 29. Bh4 {[%emt 0:00:26]} Ne3 {[%emt 0:01:05]} ({Don't do} 29... Nxc2 30. Nxd5 Bd4+ 31. Bf2 $17) 30. Rc1 {[%emt 0:00:10]} Nxg4 {[%emt 0:07:08]} 31. c3 {[%emt 0:00:05]} Nf5 {[%emt 0:01:00]} 32. Bf2 {[%emt 0:00:29]} Nxf2 {[%emt 0:00:04]} 33. Kxf2 {[%emt 0:00:01]} Nd6 {[%emt 0:00:37]} 34. Bxd5+ {[%emt 0:00:14]} Bxd5 {[%emt 0:00:03]} 35. Nxd5 {[%emt 0:00:01]} Ne4+ {[%emt 0:00:08]} 36. Kf3 {[%emt 0:00:08]} Nd2+ {[%emt 0:00:44]} 37. Kg4 {[%emt 0:00:17]} Re4+ {[%emt 0:00:31]} 38. N3f4 {[%emt 0:00:02]} Rc4 {[%emt 0:00:10]} 39. Kf5 {[%emt 0:00:13]} Ne4 {[%emt 0:00:25]} 40. Kg6 {[%emt 0:01:09]} Rc6+ {[%emt 0:00:54]} 41. Kf5 {[%emt 0:00:03]} Nd6+ {[%emt 0:00:08]} 42. Ke6 {[%emt 0:00:11]} Nc4+ {[%emt 0:00:21]} 43. Kd7 {[%emt 0:00:06]} Rd6+ {[%emt 0:00:01]} 44. Kc7 {[%emt 0:00:03]} Be5 {[%emt 0:00:07]} 45. Ne7+ $2 {[%emt 0:00:06]} (45. Kb7 $17) 45... Kf7 {[%emt 0:00:05]} 46. Nc6 {[%emt 0:00:32]} Bxf4 {[%emt 0:00:17]} 47. Rf1 {[%emt 0:00:01]} Rf6+ {[%emt 0:00:14]} 48. Kb7 {[%emt 0:00:04]} Nd6+ {[%emt 0:00:25]} 49. Kxa6 $19 {[%emt 0:00:05]} h5 {[%emt 0:00:06]} 50. c4 {[%emt 0:00:12]} bxc4 {[%emt 0:00:12]} 51. b5 {[%emt 0:00:02]} c3 {[%emt 0:00:04]} 52. b6 {[%emt 0:00:13]} c2 {[%emt 0:00:27]} 0-1

[Event "Gibraltar Challengers B 2020"]
[Site "Caleta"]
[Date "2020.01.27"]
[Round "3.42"]
[White "O`Neil, Jim"]
[Black "Lafour, Jephte"]
[Result "1-0"]
[ECO "B01"]
[WhiteElo "1870"]
[BlackElo "1690"]
[Annotator "NA"]
[PlyCount "55"]
[EventDate "2020.01.20"]
[EventType "swiss"]
[EventCountry "GGB"]
[SourceTitle "playchess.com"]
[Source "ChessBase"]
[SourceQuality "1"]
[TimeControl "6600+10"]

1. e4 {[%emt 0:00:00]} d5 {[%emt 0:05:57]} 2. exd5 {[%emt 0:00:19]} Qxd5 {[%emt 0:00:28]} 3. Nf3 {[%emt 0:01:22]} Nf6 {[%emt 0:01:53]} 4. Be2 {[%emt 0:02:08]} c6 {[%emt 0:02:59]} (4... Bf5 5. d4 c6 6. O-O e6 7. c4 Qd6 8. Nh4 Bg6 9. Nc3 Be7 10. g3 O-O 11. Nxg6 hxg6 12. Bf4 {½-½ (25) Lupulescu,C (2620)-Laznicka,V (2654) Germany 2018}) 5. c4 {[%emt 0:01:30]} Qd8 {[%emt 0:01:23]} 6. Nc3 {[%emt 0:02:01] B01: Scandinavian Defence} Bg4 {[%emt 0:00:18]} 7. O-O {[%emt 0:00:57]} e6 {[%emt 0:00:43]} 8. d4 {[%emt 0:01:28]} Bb4 {[%emt 0:05:02]} 9. Qb3 {[%emt 0:04:18]} Bxc3 $146 {[%emt 0:03:31]} ({Predecessor:} 9... Qe7 10. Bf4 Bxc3 11. bxc3 O-O 12. Rfb1 b6 13. a4 Nbd7 14. h3 Bf5 {1-0 (28) Tsoi,D (1853)-Hidalgo Minano,F Maribor 2012}) 10. Qxc3 {[%emt 0:00:17]} h6 {[%emt 0:04:56]} 11. b3 {[%emt 0:02:54]} Na6 {[%emt 0:02:12]} 12. Ba3 {[%emt 0:05:15]} Ne4 {[%emt 0:01:51]} 13. Qe3 {[%emt 0:00:00]} Nf6 {[%emt 0:12:16]} 14. Rad1 {[%emt 0:05:52]} Qa5 {[%emt 0:02:38]} 15. b4 {[%emt 0:07:59]} Qf5 {[%emt 0:08:36]} 16. b5 {[%emt 0:02:45]} Nc7 $2 {[%emt 0:05:35]} (16... cxb5 17. h3 (17. cxb5 Nc7 $16) 17... Bxf3) 17. bxc6 {[%emt 0:03:57]} bxc6 {[%emt 0:00:05]} 18. d5 {[%emt 0:01:14]} cxd5 {[%emt 0:12:28]} 19. Qc5 {[%emt 0:00:23]} O-O-O {[%emt 0:01:02]} 20. Nd4 {[%emt 0:04:53]} Ne4 {[%emt 0:07:58]} 21. Qxa7 {[%emt 0:10:30]} Qg5 {[%emt 0:05:29]} 22. Bxg4 {[%emt 0:04:52]} Nd2 {[%emt 0:02:10] [#]} 23. Rb1 $1 {[%emt 0:02:09]} Nxb1 {[%emt 0:05:37]} 24. Rxb1 {[%emt 0:00:06]} Qxg4 {[%emt 0:00:32]} 25. Rb8+ {[%emt 0:01:56]} Kd7 {[%emt 0:00:29]} 26. Qa4+ {[%emt 0:00:01]} Nb5 {[%emt 0:00:43]} 27. Qxb5+ {[%emt 0:00:12] Double Attack} Kc7 {[%emt 0:00:16]} 28. Qb7# {[%emt 0:00:08]} 1-0

[Event "Gibraltar Challengers B 2020"]
[Site "Caleta"]
[Date "2020.01.27"]
[Round "3.43"]
[White "Tkadlecek, Petr"]
[Black "Niharika, Ch"]
[Result "0-1"]
[ECO "D02"]
[WhiteElo "1775"]
[BlackElo "1865"]
[Annotator "NA"]
[PlyCount "86"]
[EventDate "2020.01.20"]
[EventType "swiss"]
[EventCountry "GGB"]
[SourceTitle "playchess.com"]
[Source "ChessBase"]
[SourceQuality "1"]
[TimeControl "6600+10"]

1. d4 {[%emt 0:00:00]} Nf6 {[%emt 0:00:37]} 2. Nf3 {[%emt 0:00:07]} e6 {[%emt 0:00:04]} 3. Bf4 {[%emt 0:01:46]} d5 {[%emt 0:00:09]} 4. e3 {[%emt 0:00:13]} c5 {[%emt 0:00:04]} 5. c3 {[%emt 0:00:43]} Nc6 {[%emt 0:00:05]} 6. Bd3 {[%emt 0:00:38]} Bd6 {[%emt 0:00:05]} 7. Bg5 {[%emt 0:00:39]} O-O {[%emt 0:00:31]} 8. Bc2 {[%emt 0:00:29]} Re8 {[%emt 0:00:32]} 9. b3 {[%emt 0:01:28]} cxd4 {[%emt 0:03:21]} 10. Nxd4 {[%emt 0:03:49]} a6 {[%emt 0:06:21]} 11. O-O {[%emt 0:01:58]} Ne5 {[%emt 0:09:59]} 12. a4 {[%emt 0:01:50]} Ned7 {[%emt 0:01:58]} 13. Nd2 {[%emt 0:02:34]} Qc7 {[%emt 0:00:16]} 14. g3 {[%emt 0:02:34]} Qxc3 {[%emt 0:00:28]} 15. Rc1 {[%emt 0:03:27]} Qa5 {[%emt 0:00:41]} 16. Re1 {[%emt 0:04:39]} Bb4 {[%emt 0:00:28]} 17. Re2 {[%emt 0:01:43]} e5 {[%emt 0:00:16]} 18. Bxf6 {[%emt 0:06:23]} Nxf6 {[%emt 0:00:51]} 19. Nf5 {[%emt 0:02:19]} e4 {[%emt 0:01:48]} 20. Nd4 {[%emt 0:02:44]} Bg4 {[%emt 0:00:24]} 21. f3 {[%emt 0:00:45]} Bxd2 {[%emt 0:00:35]} 22. Rxd2 {[%emt 0:02:04]} exf3 {[%emt 0:00:23]} 23. Kf2 {[%emt 0:01:09]} Rac8 {[%emt 0:04:04]} 24. Bb1 {[%emt 0:02:05]} Rc3 {[%emt 0:01:40]} 25. Rxc3 {[%emt 0:02:37]} Qxc3 {[%emt 0:00:03]} 26. Qe1 {[%emt 0:01:59]} g6 {[%emt 0:11:42]} 27. h3 {[%emt 0:04:47]} Bxh3 {[%emt 0:00:59]} 28. Kxf3 {[%emt 0:01:56]} Ng4 {[%emt 0:00:11]} 29. Re2 {[%emt 0:02:05]} Ne5+ {[%emt 0:05:48]} 30. Kf2 {[%emt 0:00:35]} Qc7 {[%emt 0:00:24]} 31. Qh1 {[%emt 0:04:27]} Bg4 {[%emt 0:01:05]} 32. Re1 {[%emt 0:04:09]} Qe7 {[%emt 0:01:15]} 33. Qxd5 {[%emt 0:01:12]} h5 {[%emt 0:03:04]} 34. Qe4 {[%emt 0:04:45]} h4 {[%emt 0:02:50]} 35. Qf4 {[%emt 0:04:45]} h3 {[%emt 0:04:47]} 36. Qe4 {[%emt 0:05:35]} Bd7 {[%emt 0:03:19]} 37. Qxb7 {[%emt 0:04:19]} Ng4+ {[%emt 0:02:40] Discovered Attack} 38. Kg1 {[%emt 0:01:43]} Qd6 {[%emt 0:01:08]} 39. Qf3 {[%emt 0:01:33] [#]} Qxd4 $1 {[%emt 0:00:39] Pin} 40. Bc2 {[%emt 0:15:26]} Rxe3 {[%emt 0:00:42]} 41. Rxe3 {[%emt 0:01:43]} Nxe3 {[%emt 0:00:10]} 42. Be4 {[%emt 0:03:13]} Ng4+ {[%emt 0:00:32]} 43. Kf1 {[%emt 0:00:33]} Qd6 {[%emt 0:00:37]} 0-1

[Event "Gibraltar Challengers B 2020"]
[Site "Caleta"]
[Date "2020.01.27"]
[Round "4.1"]
[White "Nebel, Jens"]
[Black "Oragwu, Chukwunonso"]
[Result "1/2-1/2"]
[ECO "B38"]
[WhiteElo "2168"]
[BlackElo "2220"]
[Annotator "ChessBase"]
[PlyCount "96"]
[EventDate "2020.01.20"]
[EventType "swiss"]
[EventCountry "GGB"]
[SourceTitle "playchess.com"]
[Source "ChessBase"]
[SourceQuality "1"]
[TimeControl "6600+10"]

1. e4 {[%emt 0:00:00]} c5 {[%emt 0:00:00]} 2. Nf3 {[%emt 0:00:00]} Nc6 {[%emt 0:00:06]} 3. d4 {[%emt 0:00:05]} cxd4 {[%emt 0:00:09]} 4. Nxd4 {[%emt 0:00:12]} g6 {[%emt 0:00:09]} 5. c4 {[%emt 0:00:22]} Bg7 {[%emt 0:00:17]} 6. Be3 {[%emt 0:00:09]} Nf6 {[%emt 0:01:11]} 7. Nc3 {[%emt 0:00:07]} O-O {[%emt 0:00:37]} 8. Be2 {[%emt 0:02:05]} d6 {[%emt 0:01:03]} 9. O-O {[%emt 0:00:41]} Bd7 {[%emt 0:00:18]} 10. h3 {[%emt 0:01:29]} Nxd4 {[%emt 0:03:19]} 11. Bxd4 {[%emt 0:00:14]} Bc6 {[%emt 0:00:08]} 12. Qd3 {[%emt 0:04:06]} a5 {[%emt 0:02:13]} 13. b3 {[%emt 0:08:36]} Nd7 {[%emt 0:07:50]} 14. Bxg7 {[%emt 0:00:09]} Kxg7 {[%emt 0:00:08]} 15. Rad1 {[%emt 0:04:47]} f6 {[%emt 0:10:41]} 16. h4 {[%emt 0:06:52]} Nc5 {[%emt 0:01:49]} 17. Qe3 {[%emt 0:01:36]} Qb6 {[%emt 0:04:17]} 18. Rb1 {[%emt 0:08:08]} Qb4 {[%emt 0:07:55]} 19. h5 {[%emt 0:04:11]} Nd7 {[%emt 0:07:21]} 20. Bg4 {[%emt 0:06:59]} Qc5 {[%emt 0:05:38]} 21. Qg3 {[%emt 0:02:56]} Ne5 {[%emt 0:05:20]} 22. Be6 {[%emt 0:03:10]} Bd7 {[%emt 0:13:28]} 23. Bxd7 {[%emt 0:02:48]} Nxd7 {[%emt 0:00:01]} 24. Nd5 {[%emt 0:00:12]} Rf7 {[%emt 0:00:21]} 25. Nf4 {[%emt 0:00:15]} Nf8 {[%emt 0:00:10]} 26. Rbd1 {[%emt 0:05:33]} Qg5 {[%emt 0:04:26]} 27. Rd3 {[%emt 0:07:44]} Qxg3 {[%emt 0:01:45]} 28. Rxg3 {[%emt 0:01:38]} Rc8 {[%emt 0:03:44]} 29. Rd1 {[%emt 0:02:46]} Rc5 {[%emt 0:02:20]} 30. hxg6 {[%emt 0:03:28]} hxg6 {[%emt 0:00:15]} 31. Nd5 {[%emt 0:01:18]} Kg8 {[%emt 0:05:41]} 32. f4 {[%emt 0:03:01]} Rh7 {[%emt 0:03:00]} 33. Kf2 {[%emt 0:02:26]} Kf7 {[%emt 0:00:16]} 34. Rgd3 {[%emt 0:03:44]} Rc6 {[%emt 0:00:46]} 35. R3d2 {[%emt 0:03:55]} Nd7 {[%emt 0:00:57]} 36. Kf3 {[%emt 0:00:32]} Nc5 {[%emt 0:00:30]} 37. Ne3 {[%emt 0:00:59]} Rh4 {[%emt 0:03:32]} 38. g3 {[%emt 0:00:53]} Rh3 {[%emt 0:00:45]} 39. Rd4 {[%emt 0:01:01]} Rc8 {[%emt 0:00:19]} 40. Ng4 {[%emt 0:02:52]} Rg8 {[%emt 0:03:03]} 41. Nf2 {[%emt 0:00:42]} Rh2 {[%emt 0:00:30]} 42. Rh1 {[%emt 0:00:48]} Rxh1 {[%emt 0:00:52]} 43. Nxh1 {[%emt 0:00:03]} g5 {[%emt 0:00:14]} 44. Nf2 {[%emt 0:00:19]} gxf4 {[%emt 0:00:11]} 45. gxf4 {[%emt 0:00:41]} Rg1 {[%emt 0:00:21]} 46. Rd1 {[%emt 0:00:34]} Rxd1 {[%emt 0:01:51]} 47. Nxd1 {[%emt 0:00:02]} e6 {[%emt 0:00:50]} 48. Nc3 {[%emt 0:01:42]} Ke7 {[%emt 0:00:18]} 1/2-1/2

[Event "Gibraltar Challengers B 2020"]
[Site "Caleta"]
[Date "2020.01.27"]
[Round "4.3"]
[White "Zulkipli, Zaidan"]
[Black "Royset, Pal"]
[Result "0-1"]
[ECO "D35"]
[WhiteElo "2174"]
[BlackElo "2151"]
[Annotator "ChessBase"]
[PlyCount "86"]
[EventDate "2020.01.20"]
[EventType "swiss"]
[EventCountry "GGB"]
[SourceTitle "playchess.com"]
[Source "ChessBase"]
[SourceQuality "1"]
[TimeControl "6600+10"]

1. d4 {[%emt 0:02:35]} Nf6 {[%emt 0:00:07]} 2. c4 {[%emt 0:00:04]} e6 {[%emt 0:00:37]} 3. Nc3 {[%emt 0:00:06]} d5 {[%emt 0:00:09]} 4. cxd5 {[%emt 0:00:06]} exd5 {[%emt 0:00:07]} 5. Bg5 {[%emt 0:00:04]} c6 {[%emt 0:00:13]} 6. e3 {[%emt 0:00:04]} Be7 {[%emt 0:00:56]} 7. Bd3 {[%emt 0:00:07]} Nbd7 {[%emt 0:00:14]} 8. Nge2 {[%emt 0:00:24]} Nh5 {[%emt 0:01:50]} 9. Bxe7 {[%emt 0:00:50]} Qxe7 {[%emt 0:00:08]} 10. g4 {[%emt 0:00:15]} Nhf6 {[%emt 0:00:58]} 11. Ng3 {[%emt 0:00:05]} Nb6 {[%emt 0:04:49]} 12. g5 {[%emt 0:00:25]} Ne4 {[%emt 0:06:05]} 13. Bxe4 {[%emt 0:06:31]} dxe4 {[%emt 0:00:07]} 14. Ncxe4 {[%emt 0:00:42]} h6 {[%emt 0:02:20]} 15. gxh6 {[%emt 0:02:53]} Rxh6 {[%emt 0:00:49]} 16. Nc5 {[%emt 0:04:56]} Nc4 {[%emt 0:07:28]} 17. Qe2 {[%emt 0:01:26]} Ne5 {[%emt 0:02:29]} 18. f3 {[%emt 0:04:09]} b6 {[%emt 0:12:07]} 19. Nb3 {[%emt 0:03:50]} Qb4+ {[%emt 0:02:48]} 20. Kf2 {[%emt 0:00:57]} Nc4 {[%emt 0:09:07]} 21. Qc2 {[%emt 0:08:38]} Kf8 {[%emt 0:06:22]} 22. Qc3 {[%emt 0:03:46]} a5 {[%emt 0:04:56]} 23. a3 {[%emt 0:26:54]} Qxc3 {[%emt 0:03:42]} 24. bxc3 {[%emt 0:00:01]} a4 {[%emt 0:02:25]} 25. Nc1 {[%emt 0:00:32]} Ra5 {[%emt 0:00:28]} 26. h4 {[%emt 0:09:56]} Rb5 {[%emt 0:01:15]} 27. Ra2 {[%emt 0:02:19]} Be6 {[%emt 0:04:48]} 28. e4 {[%emt 0:01:10]} Rb1 {[%emt 0:01:32]} 29. Nd3 {[%emt 0:13:40]} Rxh1 {[%emt 0:02:27]} 30. Nxh1 {[%emt 0:00:11]} Rxh4 {[%emt 0:00:56]} 31. Kg1 {[%emt 0:00:09]} Ne5 {[%emt 0:05:04]} 32. Nxe5 {[%emt 0:00:52]} Bxa2 {[%emt 0:00:04]} 33. Nd7+ {[%emt 0:00:59]} Ke7 {[%emt 0:00:37]} 34. Nxb6 {[%emt 0:00:03]} Bb3 {[%emt 0:03:52]} 35. Ng3 {[%emt 0:00:28]} g6 {[%emt 0:00:16]} 36. c4 {[%emt 0:03:21]} Bd1 {[%emt 0:01:11]} 37. Kg2 {[%emt 0:00:42]} Rf4 {[%emt 0:01:41]} 38. d5 {[%emt 0:00:00]} Rxf3 {[%emt 0:01:17]} 39. c5 {[%emt 0:03:47]} Rxa3 {[%emt 0:01:10]} 40. dxc6 {[%emt 0:03:35]} Kd8 {[%emt 0:00:18]} 41. Nd5 {[%emt 0:00:43]} Ra2+ {[%emt 0:02:02]} 42. Kf1 {[%emt 0:00:21]} Bg4 {[%emt 0:01:58]} 43. e5 {[%emt 0:02:06]} Bf3 {[%emt 0:02:15]} 0-1

[Event "Gibraltar Challengers B 2020"]
[Site "Caleta"]
[Date "2020.01.27"]
[Round "4.4"]
[White "Hristodorescu, Daniel"]
[Black "Dolzhikova, Olga"]
[Result "1-0"]
[ECO "B27"]
[WhiteElo "2172"]
[BlackElo "2123"]
[Annotator "ChessBase"]
[PlyCount "89"]
[EventDate "2020.01.20"]
[EventType "swiss"]
[EventCountry "GGB"]
[SourceTitle "playchess.com"]
[Source "ChessBase"]
[SourceQuality "1"]
[TimeControl "6600+10"]

1. e4 {[%emt 0:07:27]} g6 {[%emt 0:01:12]} 2. d4 {[%emt 0:00:40]} Bg7 {[%emt 0:00:05]} 3. Nf3 {[%emt 0:00:50]} c5 {[%emt 0:01:19]} 4. dxc5 {[%emt 0:00:25]} Qa5+ {[%emt 0:00:04]} 5. Nc3 {[%emt 0:02:37]} Bxc3+ {[%emt 0:13:59]} 6. bxc3 {[%emt 0:00:11]} Qxc3+ {[%emt 0:00:13]} 7. Bd2 {[%emt 0:00:10]} Qxc5 {[%emt 0:00:07]} 8. Bd3 {[%emt 0:02:44]} Nf6 {[%emt 0:01:09]} 9. O-O {[%emt 0:00:31]} O-O {[%emt 0:13:20]} 10. e5 {[%emt 0:04:39]} Nd5 {[%emt 0:08:28]} 11. Qe1 {[%emt 0:11:41]} d6 {[%emt 0:14:29]} 12. c4 {[%emt 0:05:23]} Nb6 {[%emt 0:03:53]} 13. Bb4 {[%emt 0:06:15]} Qc7 {[%emt 0:00:06]} 14. Qe3 {[%emt 0:01:42]} Bg4 {[%emt 0:23:20]} 15. exd6 {[%emt 0:02:23]} exd6 {[%emt 0:01:05]} 16. Nd4 {[%emt 0:03:00]} Nc6 {[%emt 0:02:43]} 17. Nxc6 {[%emt 0:01:09]} Qxc6 {[%emt 0:03:33]} 18. Qf4 {[%emt 0:00:38]} Be6 {[%emt 0:00:26]} 19. Rac1 {[%emt 0:01:22]} Rad8 {[%emt 0:04:52]} 20. Be4 {[%emt 0:01:28]} Qa4 {[%emt 0:07:17]} 21. Bc3 {[%emt 0:05:45]} f5 {[%emt 0:00:17]} 22. Qh6 {[%emt 0:00:53]} Qd7 {[%emt 0:01:22]} 23. Bd3 {[%emt 0:03:18]} Bxc4 {[%emt 0:04:07]} 24. Rfd1 {[%emt 0:05:44]} Bxd3 {[%emt 0:00:17]} 25. Rxd3 {[%emt 0:00:09]} Qf7 {[%emt 0:00:18]} 26. h4 {[%emt 0:01:04]} Rfe8 {[%emt 0:01:39]} 27. h5 {[%emt 0:00:31]} Re6 {[%emt 0:00:05]} 28. Rcd1 {[%emt 0:02:08]} Nc4 {[%emt 0:00:58]} 29. hxg6 {[%emt 0:01:45]} Rxg6 {[%emt 0:00:04]} 30. Qh4 {[%emt 0:00:20]} Re8 {[%emt 0:01:11]} 31. Qd4 {[%emt 0:00:52]} Ne5 {[%emt 0:00:32]} 32. f4 {[%emt 0:00:37]} Qg7 {[%emt 0:00:36]} 33. Qd5+ {[%emt 0:00:21]} Qf7 {[%emt 0:01:30]} 34. fxe5 {[%emt 0:01:06]} dxe5 {[%emt 0:00:19]} 35. Bxe5 {[%emt 0:00:44]} Qxd5 {[%emt 0:00:24]} 36. Rxd5 {[%emt 0:00:09]} Rge6 {[%emt 0:00:14]} 37. Bf4 {[%emt 0:01:46]} Re2 {[%emt 0:00:15]} 38. Rxf5 {[%emt 0:04:25]} Rxa2 {[%emt 0:00:06]} 39. Rg5+ {[%emt 0:00:33]} Kf7 {[%emt 0:00:05]} 40. Rd7+ {[%emt 0:00:47]} Re7 {[%emt 0:00:21]} 41. Rxe7+ {[%emt 0:00:27]} Kxe7 {[%emt 0:00:01]} 42. Rg7+ {[%emt 0:00:08]} Kf6 {[%emt 0:00:05]} 43. Rxb7 {[%emt 0:00:18]} Kg6 {[%emt 0:00:15]} 44. Kh2 {[%emt 0:00:37]} a5 {[%emt 0:00:17]} 45. Kh3 {[%emt 0:01:47]} 1-0